fUST/lending_fUST_20250624
["ID","MTS","AMOUNT","RATE_DAILY","PERIOD"]
[367244962,1750713066670,-151.0,0.00022,7]
[367244963,1750713066679,-431.018653,0.00022,7]
[367244964,1750713066688,-151.0,0.00022,7]
[367244965,1750713066697,-151.0,0.00022,7]
[367244966,1750713066707,-151.0,0.00022,7]
[367244967,1750713066716,-2907.4199,0.00022,7]
[367244968,1750713066725,-2907.419905,0.00022,7]
[367244969,1750713066734,-320.415296,0.00022,7]
[367244970,1750713066743,-320.415291,0.00022,7]
[367244971,1750713066752,-151.0,0.00022,7]
[367244972,1750713066761,-156.550576,0.00022,7]
[367244973,1750713066770,-267.834492,0.00022,7]
[367244974,1750713066779,-222.134489,0.00022,7]
[367244975,1750713066789,-222.134489,0.00022,7]
[367244976,1750713066799,-1025.727858,0.00022,7]
[367244977,1750713066808,-1025.7278486,0.00022,7]
[367244978,1750713066817,-168.543402,0.00022,7]
[367244979,1750713066826,-151.0,0.00022,7]
[367244980,1750713066836,-168.543392,0.00022,7]
[367244981,1750713066847,-151.0,0.00022,7]
[367244982,1750713066857,-248.227502,0.00022,7]
[367244983,1750713066866,-170.504754,0.00022,7]
[367244984,1750713066876,-170.504744,0.00022,7]
[367244985,1750713066885,-160.0,0.00022,7]
[367244986,1750713066895,-846.53928378,0.00022,7]
[367244987,1750713066904,-213.63163053,0.00022,7]
[367244988,1750713066913,-3000.0,0.00022012,2]
[367244989,1750713066923,-3000.0,0.00022012,2]
[367244990,1750713066932,-8680.42014708,0.00022014,2]
[367244991,1750713066942,-168.0,0.00022049,2]
[367244992,1750713066955,-3758.27849114,0.00022072,6]
[367244993,1750713066964,-1045.52592767,0.000221,21]
[367244994,1750713066973,-500.0,0.00022191,10]
[367244995,1750713066983,-12000.0,0.000222,2]
[367244996,1750713066992,-306.0,0.000222,2]
[367244997,1750713067001,-669.7,0.00022215,4]
[367244998,1750713067010,-460.0,0.00022232,2]
[367244999,1750713067019,-1917.77,0.00022234,2]
[367245000,1750713067028,-1996.47,0.00022234,2]
[367245001,1750713067038,-2458.42,0.00022236,2]
[367245002,1750713067047,-768.95,0.00022236,2]
[367245003,1750713067057,-499.06,0.00022236,2]
[367245004,1750713067074,-1326.42,0.00022236,2]
[367245005,1750713067092,-1916.14,0.00022236,2]
[367245006,1750713067107,-2981.58,0.00022236,2]
[367245007,1750713067122,-561.49,0.00022236,2]
[367245008,1750713067138,-998.87,0.00022236,2]
[367245009,1750713067154,-746.54,0.00022236,2]
[367245010,1750713067170,-1197.46,0.00022236,2]
[367245011,1750713067187,-868.07,0.00022236,2]
[367245012,1750713067201,-608.93,0.00022236,2]
[367245013,1750713067215,-3607.91,0.00022236,2]
[367245014,1750713067232,-1233.5,0.00022236,2]
[367245015,1750713067245,-852.78,0.00022236,2]
[367245016,1750713067259,-811.33,0.00022236,2]
[367245017,1750713067273,-460.0,0.00022236,2]
[367245018,1750713067288,-460.0,0.00022243,2]
[367245019,1750713067304,-555.63,0.00022243,2]
[367245020,1750713067320,-834.36,0.00022243,2]
[367245021,1750713067337,-460.0,0.00022243,2]
[367245022,1750713067349,-460.0,0.00022243,2]
[367245023,1750713067362,-460.0,0.00022243,2]
[367245024,1750713067378,-460.0,0.00022243,2]
[367245025,1750713067393,-460.0,0.00022243,2]
[367245026,1750713067406,-460.0,0.00022243,2]
[367245027,1750713067420,-460.0,0.00022243,2]
[367245028,1750713067434,-460.0,0.00022243,2]
[367245029,1750713067445,-1007.44,0.00022243,2]
[367245030,1750713067459,-460.0,0.00022243,2]
[367245031,1750713067475,-778.84,0.00022243,2]
[367245032,1750713067487,-691.92,0.00022243,2]
[367245033,1750713067500,-681.31,0.00022243,2]
[367245034,1750713067514,-673.85,0.00022243,2]
[367245035,1750713067526,-460.0,0.00022243,2]
[367245036,1750713067540,-688.21,0.00022243,2]
[367245037,1750713067553,-460.0,0.00022243,2]
[367245038,1750713067566,-460.0,0.00022243,2]
[367245039,1750713067579,-460.0,0.00022243,2]
[367245040,1750713067591,-460.0,0.00022243,2]
[367245041,1750713067603,-611.84,0.00022243,2]
[367245042,1750713067616,-1114.83,0.00022243,2]
[367245043,1750713067628,-872.33,0.00022243,2]
[367245044,1750713067641,-460.0,0.00022243,2]
[367245045,1750713067653,-460.0,0.00022243,2]
[367245046,1750713067665,-648.26,0.00022243,2]
[367245047,1750713067677,-1112.93,0.00022243,2]
[367245048,1750713067690,-158.87234399,0.00022245,2]
[367245049,1750713067703,-460.0,0.00022246,2]
[367245050,1750713067716,-460.0,0.00022246,2]
[367245051,1750713067729,-460.0,0.00022246,2]
[367245052,1750713067741,-460.0,0.00022246,2]
[367245053,1750713067754,-1763.36,0.00022246,2]
[367245054,1750713067766,-735.83,0.00022246,2]
[367245055,1750713067779,-6806.59,0.00022246,2]
[367245056,1750713067792,-1456.91,0.00022246,2]
[367245057,1750713067806,-1053.14,0.00022246,2]
[367245058,1750713067818,-799.06,0.00022246,2]
[367245059,1750713067830,-460.0,0.00022246,2]
[367245060,1750713067843,-1090.77,0.00022246,2]
[367245061,1750713067856,-938.86,0.00022246,2]
[367245062,1750713067868,-2416.82,0.00022246,2]
[367245063,1750713067881,-951.38,0.00022246,2]
[367245064,1750713067894,-564.51,0.00022246,2]
[367245065,1750713067906,-151.0,0.00022247,7]
[367245066,1750713067918,-151.0,0.00022247,7]
[367245067,1750713067931,-460.0,0.00022247,2]
[367245068,1750713067943,-460.0,0.00022247,2]
[367245069,1750713067955,-460.0,0.00022247,2]
[367245070,1750713067967,-638.1,0.00022247,2]
[367245071,1750713067979,-460.0,0.00022247,2]
[367245072,1750713067991,-460.0,0.00022247,2]
[367245073,1750713068003,-741.03,0.00022247,2]
[367245074,1750713068015,-749.26,0.00022247,2]
[367245075,1750713068028,-460.0,0.00022247,2]
[367245076,1750713068040,-526.39,0.00022247,2]
[367245077,1750713068052,-2964.55,0.00022247,2]
[367245078,1750713068064,-460.0,0.00022247,2]
[367245079,1750713068077,-2045.16,0.00022247,2]
[367245080,1750713068089,-476.44,0.00022247,2]
[367245081,1750713068101,-610.23,0.00022247,2]
[367245082,1750713068113,-460.0,0.00022247,2]
[367245083,1750713068125,-3382.79,0.00022247,2]
[367245084,1750713068137,-588.75,0.00022247,2]
[367245085,1750713068150,-2795.99,0.00022247,2]
[367245086,1750713068162,-461.25047589,0.00022247,2]
[367245087,1750713068175,-460.0,0.00022247,2]
[367245088,1750713068188,-1238.41,0.00022247,2]
[367245089,1750713068200,-151.0,0.00022249,7]
[367245090,1750713068213,-288.750934,0.00022249,7]
[367245091,1750713068226,-431.018653,0.00022249,7]
[367245092,1750713068238,-431.018647,0.00022249,7]
[367245093,1750713068250,-289.831834,0.0002225,7]
[367245094,1750713068263,-289.831834,0.0002225,7]
[367245095,1750713068277,-387.10013829,0.0002225,2]
[367245096,1750713068289,-757.95,0.0002225,2]
[367245097,1750713068302,-468.15,0.0002225,2]
[367245098,1750713068314,-491.86212554,0.0002225,2]
[367245099,1750713068327,-460.0,0.0002225,2]
[367245100,1750713068340,-460.0,0.0002225,2]
[367245101,1750713068353,-460.0,0.0002225,2]
[367245102,1750713068365,-460.0,0.0002225,2]
[367245103,1750713068378,-472.41,0.0002225,2]
[367245104,1750713068390,-696.67,0.0002225,2]
[367245105,1750713068402,-632.2,0.0002225,2]
[367245106,1750713068415,-460.0,0.00022258,2]
[367245107,1750713068427,-249.598044,0.00022259,7]
[367245108,1750713068440,-342.08665143,0.00022259,2]
[367245109,1750713068452,-460.0,0.00022259,2]
[367245110,1750713068465,-460.0,0.00022259,2]
[367245111,1750713068478,-439.5501882,0.00022259,2]
[367245112,1750713068490,-460.0,0.00022259,2]
[367245113,1750713068502,-159.567896,0.00022261,7]
[367245114,1750713068516,-159.567896,0.00022261,7]
[367245115,1750713068527,-151.0,0.00022261,7]
[367245116,1750713068540,-151.0,0.00022261,7]
[367245117,1750713068552,-232.854194,0.00022262,7]
[367245118,1750713068564,-232.854194,0.00022262,7]
[367245119,1750713068576,-151.0,0.00022262,7]
[367245120,1750713068588,-296.024134,0.00022262,7]
[367245121,1750713068600,-151.0,0.00022263,7]
[367245122,1750713068609,-262.488634,0.00022263,7]
[367245123,1750713068618,-262.488634,0.00022263,7]
[367245124,1750713068628,-168.0,0.00022285,2]
[367245125,1750713068855,-9048.01,0.000223,7]
[367245126,1750713068870,-151.0,0.000223,7]
[367245127,1750713068880,-3758.27849114,0.00022314,7]
[367245128,1750713068890,-3167.0,0.0002234,2]
[367245129,1750713068900,-168.0,0.00022396,2]
[367245130,1750713068911,-500.0,0.00022465,2]
[367245131,1750713068921,-150.0,0.000225,14]
[367245132,1750713068931,-3834.36,0.000225,7]
[367245133,1750713068941,-3000.0,0.000225,2]
[367245134,1750713068951,-160.0,0.000225,7]
[367245135,1750713068961,-846.53928378,0.000225,7]
[367245136,1750713068969,-669.7,0.00022502,5]
[367245137,1750713068978,-272.09507842,0.00022506,2]
[367245138,1750713068989,-1917.77,0.00022508,2]
[367245139,1750713068999,-1996.47,0.00022508,2]
[367245140,1750713069008,-3000.0,0.0002251,2]
[367245141,1750713069018,-2458.42,0.0002251,2]
[367245142,1750713069027,-768.95,0.0002251,2]
[367245143,1750713069036,-499.06,0.0002251,2]
[367245144,1750713069046,-1326.42,0.0002251,2]
[367245145,1750713069056,-1916.14,0.0002251,2]
[367245146,1750713069065,-2981.58,0.0002251,2]
[367245147,1750713069075,-561.49,0.0002251,2]
[367245148,1750713069085,-998.87,0.0002251,2]
[367245149,1750713069095,-746.54,0.0002251,2]
[367245150,1750713069103,-1197.46,0.0002251,2]
[367245151,1750713069113,-868.07,0.0002251,2]
[367245152,1750713069123,-608.93,0.0002251,2]
[367245153,1750713069133,-3607.91,0.0002251,2]
[367245154,1750713069143,-1233.5,0.0002251,2]
[367245155,1750713069152,-852.78,0.0002251,2]
[367245156,1750713069162,-811.33,0.0002251,2]
[367245157,1750713069171,-460.0,0.0002251,2]
[367245158,1750713069181,-5888.0,0.00022513,2]
[367245159,1750713069191,-390.39538452,0.00022517,2]
[367245160,1750713069200,-555.63,0.00022517,2]
[367245161,1750713069209,-834.36,0.00022517,2]
[367245162,1750713069219,-460.0,0.00022517,2]
[367245163,1750713069228,-460.0,0.00022517,2]
[367245164,1750713069238,-460.0,0.00022517,2]
[367245165,1750713069247,-460.0,0.00022517,2]
[367245166,1750713069257,-460.0,0.00022517,2]
[367245167,1750713069267,-460.0,0.00022517,2]
[367245168,1750713069276,-460.0,0.00022517,2]
[367245169,1750713069286,-460.0,0.00022517,2]
[367245170,1750713069295,-1007.44,0.00022517,2]
[367245171,1750713069304,-460.0,0.00022517,2]
[367245172,1750713069314,-778.84,0.00022517,2]
[367245173,1750713069325,-691.92,0.00022517,2]
[367245174,1750713069335,-681.31,0.00022517,2]
[367245175,1750713069345,-673.85,0.00022517,2]
[367245176,1750713069356,-460.0,0.00022517,2]
[367245177,1750713069365,-688.21,0.00022517,2]
[367245178,1750713069375,-460.0,0.00022517,2]
[367245179,1750713069385,-460.0,0.00022517,2]
[367245180,1750713069395,-460.0,0.00022517,2]
[367245181,1750713069405,-460.0,0.00022517,2]
[367245182,1750713069414,-611.84,0.00022517,2]
[367245183,1750713069424,-1114.83,0.00022517,2]
[367245184,1750713069434,-872.33,0.00022517,2]
[367245185,1750713069443,-460.0,0.00022517,2]
[367245186,1750713069453,-460.0,0.00022517,2]
[367245187,1750713069463,-648.26,0.00022517,2]
[367245188,1750713069476,-1112.93,0.00022517,2]
[367245189,1750713069485,-453.2312045,0.00022518,2]
[367245190,1750713069494,-3000.0,0.0002252,2]
[367245191,1750713069504,-460.0,0.0002252,2]
[367245192,1750713069515,-460.0,0.0002252,2]
[367245193,1750713069525,-460.0,0.0002252,2]
[367245194,1750713069534,-460.0,0.0002252,2]
[367245195,1750713069545,-1763.36,0.0002252,2]
[367245196,1750713069556,-735.83,0.0002252,2]
[367245197,1750713069565,-6806.59,0.0002252,2]
[367245198,1750713069574,-1456.91,0.0002252,2]
[367245199,1750713069584,-1053.14,0.0002252,2]
[367245200,1750713069594,-799.06,0.0002252,2]
[367245201,1750713069603,-460.0,0.0002252,2]
[367245202,1750713069613,-1090.77,0.0002252,2]
[367245203,1750713069622,-938.86,0.0002252,2]
[367245204,1750713069632,-2416.82,0.0002252,2]
[367245205,1750713069642,-951.38,0.0002252,2]
[367245206,1750713069651,-564.51,0.0002252,2]
[367245207,1750713069661,-191.60294073,0.00022521,2]
[367245208,1750713069671,-1102.41545301,0.00022521,2]
[367245209,1750713069680,-268.65876723,0.00022521,2]
[367245210,1750713069690,-500.0,0.00022521,2]
[367245211,1750713069700,-1000.0,0.00022521,2]
[367245212,1750713069710,-1000.0,0.00022521,2]
[367245213,1750713069720,-1000.0,0.00022521,2]
[367245214,1750713069729,-1000.0,0.00022521,2]
[367245215,1750713069738,-505.81942603,0.00022521,2]
[367245216,1750713069748,-1000.0,0.00022521,2]
[367245217,1750713069757,-1000.0,0.00022521,2]
[367245218,1750713069767,-1000.0,0.00022521,2]
[367245219,1750713069776,-1000.0,0.00022521,2]
[367245220,1750713069786,-1000.0,0.00022521,2]
[367245221,1750713069796,-500.0,0.00022521,2]
[367245222,1750713069805,-1000.0,0.00022521,2]
[367245223,1750713069815,-1000.0,0.00022521,2]
[367245224,1750713069824,-1000.0,0.00022521,2]
[367245225,1750713069834,-500.23184163,0.00022521,2]
[367245226,1750713069846,-1000.0,0.00022521,2]
[367245227,1750713069857,-500.0,0.00022521,2]
[367245228,1750713069867,-1200.0,0.00022521,2]
[367245229,1750713069877,-1000.0,0.00022521,2]
[367245230,1750713069888,-632.98579875,0.00022521,2]
[367245231,1750713069898,-1000.0,0.00022521,2]
[367245232,1750713069908,-1000.0,0.00022521,2]
[367245233,1750713069918,-500.0,0.00022521,2]
[367245234,1750713069928,-1000.0,0.00022521,2]
[367245235,1750713069938,-1000.0,0.00022521,2]
[367245236,1750713069948,-500.0,0.00022521,2]
[367245237,1750713069959,-1000.83696696,0.00022521,2]
[367245238,1750713069970,-1046.166901,0.00022521,2]
[367245239,1750713069980,-531.0677499,0.00022521,2]
[367245240,1750713069990,-500.0,0.00022521,2]
[367245241,1750713070000,-1000.0,0.00022521,2]
[367245242,1750713070009,-399.49212792,0.00022521,2]
[367245243,1750713070019,-502.88923,0.00022521,2]
[367245244,1750713070029,-289.831834,0.00022521,7]
[367245245,1750713070038,-289.831834,0.00022521,7]
[367245246,1750713070047,-151.0,0.00022521,7]
[367245247,1750713070057,-460.0,0.00022521,2]
[367245248,1750713070066,-460.0,0.00022521,2]
[367245249,1750713070075,-460.0,0.00022521,2]
[367245250,1750713070085,-638.1,0.00022521,2]
[367245251,1750713070095,-460.0,0.00022521,2]
[367245252,1750713070104,-531.87087234,0.00022521,2]
[367245253,1750713070113,-741.03,0.00022521,2]
[367245254,1750713070123,-749.26,0.00022521,2]
[367245255,1750713070133,-460.0,0.00022521,2]
[367245256,1750713070143,-526.39,0.00022521,2]
[367245257,1750713070153,-2964.55,0.00022521,2]
[367245258,1750713070163,-460.0,0.00022521,2]
[367245259,1750713070172,-2045.16,0.00022521,2]
[367245260,1750713070182,-476.44,0.00022521,2]
[367245261,1750713070191,-610.23,0.00022521,2]
[367245262,1750713070202,-538.27117722,0.00022521,2]
[367245263,1750713070211,-3382.79,0.00022521,2]
[367245264,1750713070220,-588.75,0.00022521,2]
[367245265,1750713070229,-2795.99,0.00022521,2]
[367245266,1750713070239,-460.0,0.00022521,2]
[367245267,1750713070248,-1238.41,0.00022521,2]
[367245268,1750713070257,-757.95,0.00022524,2]
[367245269,1750713070266,-468.15,0.00022524,2]
[367245270,1750713070275,-220.30766419,0.00022524,2]
[367245271,1750713070285,-460.0,0.00022524,2]
[367245272,1750713070294,-460.0,0.00022524,2]
[367245273,1750713070303,-535.53520945,0.00022524,2]
[367245274,1750713070313,-472.41,0.00022524,2]
[367245275,1750713070322,-696.67,0.00022524,2]
[367245276,1750713070331,-632.2,0.00022524,2]
[367245277,1750713070341,-3000.0,0.0002253,2]
[367245278,1750713070350,-460.0,0.00022532,2]
[367245279,1750713070360,-460.0,0.00022533,2]
[367245280,1750713070369,-460.0,0.00022533,2]
[367245281,1750713070378,-460.0,0.00022533,2]
[367245282,1750713070388,-151.0,0.00022537,7]
[367245283,1750713070397,-159.567896,0.00022537,7]
[367245284,1750713070406,-159.567896,0.00022537,7]
[367245285,1750713070416,-262.488634,0.00022537,7]
[367245286,1750713070425,-262.488634,0.00022537,7]
[367245287,1750713070435,-151.0,0.00022537,7]
[367245288,1750713070444,-242.957612,0.00022537,7]
[367245289,1750713070459,-168.0,0.00022538,2]
[367245290,1750713070475,-3000.0,0.0002254,2]
[367245291,1750713070494,-3000.0,0.0002255,2]
[367245292,1750713070503,-3758.27849114,0.00022555,7]
[367245293,1750713070513,-232.854194,0.0002256,7]
[367245294,1750713070523,-232.854194,0.0002256,7]
[367245295,1750713070533,-3000.0,0.0002256,2]
[367245296,1750713070542,-151.0,0.0002256,7]
[367245297,1750713070552,-3500.0,0.0002256,2]
[367245298,1750713070563,-3500.0,0.0002256,2]
[367245299,1750713070572,-3000.0,0.0002257,2]
[367245300,1750713070582,-3000.0,0.0002258,2]
[367245301,1750713070592,-3000.0,0.0002259,2]
[367245302,1750713070602,-800.0,0.00022598,2]
[367245303,1750713070611,-3000.0,0.000226,2]
[367245304,1750713070621,-470.856984,0.00022603,2]
[367245305,1750713070630,-3000.0,0.0002261,2]
[367245306,1750713070640,-3000.0,0.0002262,2]
[367245307,1750713070649,-8680.42014708,0.00022621,2]
[367245308,1750713070659,-3000.0,0.0002263,2]
[367245309,1750713070668,-160.0,0.00022636,2]
[367245310,1750713070677,-3000.0,0.0002264,2]
[367245311,1750713070686,-168.0,0.00022641,2]
[367245312,1750713070696,-3000.0,0.0002265,2]
[367245313,1750713070706,-3000.0,0.0002266,2]
[367245314,1750713070716,-3000.0,0.0002267,2]
[367245315,1750713070726,-3000.0,0.0002268,2]
[367245316,1750713070735,-3000.0,0.0002269,2]
[367245317,1750713070744,-3000.0,0.000227,2]
[367245318,1750713070753,-3000.0,0.0002271,2]
[367245319,1750713070763,-3000.0,0.0002272,2]
[367245320,1750713070772,-3000.0,0.0002273,2]
[367245321,1750713070782,-500.0,0.00022739,11]
[367245322,1750713070792,-3000.0,0.0002274,2]
[367245323,1750713070801,-3000.0,0.0002275,2]
[367245324,1750713070810,-3000.0,0.0002276,2]
[367245325,1750713070820,-3000.0,0.0002277,2]
[367245326,1750713070830,-3000.0,0.0002278,2]
[367245327,1750713070839,-289.831834,0.0002278,7]
[367245328,1750713070849,-289.831828,0.0002278,7]
[367245329,1750713070859,-1917.77,0.00022782,2]
[367245330,1750713070869,-1996.47,0.00022782,2]
[367245331,1750713070879,-2458.42,0.00022784,2]
[367245332,1750713070889,-768.95,0.00022784,2]
[367245333,1750713070898,-499.06,0.00022784,2]
[367245334,1750713070920,-1326.42,0.00022784,2]
[367245335,1750713070930,-1916.14,0.00022784,2]
[367245336,1750713070939,-2981.58,0.00022784,2]
[367245337,1750713070949,-561.49,0.00022784,2]
[367245338,1750713070959,-998.87,0.00022784,2]
[367245339,1750713070968,-746.54,0.00022784,2]
[367245340,1750713070978,-1197.46,0.00022784,2]
[367245341,1750713070987,-868.07,0.00022784,2]
[367245342,1750713070997,-608.93,0.00022784,2]
[367245343,1750713071006,-3607.91,0.00022784,2]
[367245344,1750713071015,-1233.5,0.00022784,2]
[367245345,1750713071024,-852.78,0.00022784,2]
[367245346,1750713071034,-811.33,0.00022784,2]
[367245347,1750713071044,-460.0,0.00022784,2]
[367245348,1750713071053,-669.7,0.00022789,5]
[367245349,1750713071064,-3000.0,0.0002279,2]
[367245350,1750713071073,-555.63,0.00022791,2]
[367245351,1750713071082,-834.36,0.00022791,2]
[367245352,1750713071092,-460.0,0.00022791,2]
[367245353,1750713071101,-460.0,0.00022791,2]
[367245354,1750713071110,-460.0,0.00022791,2]
[367245355,1750713071120,-460.0,0.00022791,2]
[367245356,1750713071129,-560.77293179,0.00022791,2]
[367245357,1750713071139,-460.0,0.00022791,2]
[367245358,1750713071149,-460.0,0.00022791,2]
[367245359,1750713071159,-399.51035989,0.00022791,2]
[367245360,1750713071168,-1007.44,0.00022791,2]
[367245361,1750713071177,-460.0,0.00022791,2]
[367245362,1750713071188,-778.84,0.00022791,2]
[367245363,1750713071198,-691.92,0.00022791,2]
[367245364,1750713071208,-681.31,0.00022791,2]
[367245365,1750713071217,-673.85,0.00022791,2]
[367245366,1750713071228,-362.77180376,0.00022791,2]
[367245367,1750713071237,-688.21,0.00022791,2]
[367245368,1750713071247,-460.0,0.00022791,2]
[367245369,1750713071256,-537.11700555,0.00022791,2]
[367245370,1750713071266,-460.0,0.00022791,2]
[367245371,1750713071276,-460.0,0.00022791,2]
[367245372,1750713071285,-611.84,0.00022791,2]
[367245373,1750713071294,-1114.83,0.00022791,2]
[367245374,1750713071304,-872.33,0.00022791,2]
[367245375,1750713071314,-460.0,0.00022791,2]
[367245376,1750713071324,-460.0,0.00022791,2]
[367245377,1750713071333,-648.26,0.00022791,2]
[367245378,1750713071343,-1112.93,0.00022791,2]
[367245379,1750713071354,-460.0,0.00022794,2]
[367245380,1750713071363,-460.0,0.00022794,2]
[367245381,1750713071373,-460.0,0.00022794,2]
[367245382,1750713071383,-460.0,0.00022794,2]
[367245383,1750713071395,-1763.36,0.00022794,2]
[367245384,1750713071404,-735.83,0.00022794,2]
[367245385,1750713071414,-6806.59,0.00022794,2]
[367245386,1750713071424,-1456.91,0.00022794,2]
[367245387,1750713071433,-1053.14,0.00022794,2]
[367245388,1750713071443,-799.06,0.00022794,2]
[367245389,1750713071453,-460.0,0.00022794,2]
[367245390,1750713071462,-1090.77,0.00022794,2]
[367245391,1750713071476,-938.86,0.00022794,2]
[367245392,1750713071485,-2416.82,0.00022794,2]
[367245393,1750713071494,-951.38,0.00022794,2]
[367245394,1750713071503,-564.51,0.00022794,2]
[367245395,1750713071514,-460.0,0.00022795,2]
[367245396,1750713071523,-460.0,0.00022795,2]
[367245397,1750713071533,-460.0,0.00022795,2]
[367245398,1750713071544,-638.1,0.00022795,2]
[367245399,1750713071554,-460.0,0.00022795,2]
[367245400,1750713071563,-741.03,0.00022795,2]
[367245401,1750713071573,-749.26,0.00022795,2]
[367245402,1750713071582,-460.0,0.00022795,2]
[367245403,1750713071592,-526.39,0.00022795,2]
[367245404,1750713071602,-2964.55,0.00022795,2]
[367245405,1750713071611,-460.0,0.00022795,2]
[367245407,1750713071622,-2045.16,0.00022795,2]
[367245408,1750713071632,-476.44,0.00022795,2]
[367245409,1750713071641,-610.23,0.00022795,2]
[367245410,1750713071650,-3382.79,0.00022795,2]
[367245411,1750713071660,-588.75,0.00022795,2]
[367245412,1750713071670,-2795.99,0.00022795,2]
[367245413,1750713071681,-460.0,0.00022795,2]
[367245414,1750713071690,-1238.41,0.00022795,2]
[367245415,1750713071700,-3758.27849114,0.00022797,7]
[367245416,1750713071709,-757.95,0.00022798,2]
[367245417,1750713071719,-468.15,0.00022798,2]
[367245418,1750713071729,-460.0,0.00022798,2]
[367245419,1750713071739,-460.0,0.00022798,2]
[367245420,1750713071748,-472.41,0.00022798,2]
[367245421,1750713071758,-696.67,0.00022798,2]
[367245422,1750713071767,-632.2,0.00022798,2]
[367245423,1750713071777,-1000.0,0.000228,5]
[367245424,1750713071787,-13908.74686996,0.000228,2]
[367245425,1750713071796,-92921.18904702,0.000228,2]
[367245426,1750713071805,-151.0,0.000228,7]
[367245427,1750713071815,-232.854194,0.000228,7]
[367245428,1750713071824,-232.85418709,0.000228,7]
[367245429,1750713071834,-3000.0,0.000228,2]
[367245430,1750713071844,-159.567896,0.000228,7]
[367245431,1750713071853,-159.567906,0.000228,7]
[367245432,1750713071862,-262.488634,0.000228,7]
[367245433,1750713071872,-262.488634,0.000228,7]
[367245434,1750713071881,-151.0,0.000228,7]
[367245435,1750713071892,-151.0,0.000228,7]
[367245436,1750713071902,-460.0,0.00022806,2]
[367245437,1750713071913,-572.48412923,0.00022807,2]
[367245438,1750713071925,-460.0,0.00022807,2]
[367245439,1750713071935,-460.0,0.00022807,2]
[367245440,1750713071945,-3000.0,0.0002281,2]
[367245441,1750713071954,-574.7458077,0.00022817,2]
[367245442,1750713071963,-273.6815149,0.00022817,2]
[367245443,1750713071972,-177.3437282,0.00022817,2]
[367245444,1750713071982,-574.7458077,0.00022817,2]
[367245445,1750713071992,-574.7458077,0.00022817,2]
[367245446,1750713072001,-177.3437282,0.00022817,2]
[367245447,1750713072010,-574.7458077,0.00022817,2]
[367245448,1750713072020,-153.0,0.00022817,2]
[367245449,1750713072029,-342.2156477,0.00022817,2]
[367245450,1750713072038,-159.1393301,0.00022817,2]
[367245451,1750713072048,-177.3437282,0.00022817,2]
[367245452,1750713072206,-159.1393301,0.00022817,2]
[367245453,1750713072215,-153.0,0.00022817,2]
[367245454,1750713072225,-159.1393301,0.00022817,2]
[367245455,1750713072235,-177.3437282,0.00022817,2]
[367245456,1750713072244,-159.1393301,0.00022817,2]
[367245457,1750713072253,-177.3437282,0.00022817,2]
[367245458,1750713072263,-159.1393301,0.00022817,2]
[367245459,1750713072272,-177.3437282,0.00022817,2]
[367245460,1750713072281,-177.3437282,0.00022817,2]
[367245461,1750713072291,-177.3437282,0.00022817,2]
[367245462,1750713072300,-177.3437282,0.00022817,2]